Cogmind - Beta 14 @@@ ROGUE MODE // 2024.08.11 @ 14:03:06 Player: Benno Result: Destroyed by Y-64 Sentinel with Wave Gun Performance ------------- Evolutions (5) 2500 Regions Visited (11) 2200 Robots Destroyed (38) 190 Value Destroyed (1275) 1275 Prototype IDs (1) 20 Alien Tech Used (0) 0 Bonus (147) 147 TOTAL SCORE: 6332 Bonus ------- High Alert Combat Kills 11 Follower Combat Kills 136 Cogmind --------- Core Integrity 0/1000 Matter 52/300 Energy 419/450 System Corruption 0% Temperature Cool (9) Movement Core (100) Ox1 Location -5/Extension Parts ------- > --- POWER (3) -------- (None) > --- PROPULSION (4) --- (None) > --- UTILITY (6) ------ Energy Well > --- WEAPON (4) ------- (None) > --- INVENTORY (5) ---- (None) Peak State ------------ > --- POWER ------------ Micro Nuclear Core Micro Nuclear Core > --- PROPULSION ------- Light Treads Carbon-fiber Leg Titanium Leg Armored Leg > --- UTILITY ---------- Improved Heat Sink Advanced Heat Sink Medium Storage Unit Improved Sensor Array Core Shielding Recalibrator > --- WEAPON ----------- Phase Cannon Flak Gun Heavy Flak Cannon > --- INVENTORY -------- Improved Ion Engine Light Nuclear Core Micro Nuclear Core Improved Heat Sink Improved Heat Sink Improved Heat Sink Small Storage Unit Medium Storage Unit Force Field Flak Gun [Rating: 53] Favorites ----------- Power Micro Nuclear Core Engine Improved Ion Engine Power Core Micro Nuclear Core Propulsion Carbon-fiber Leg Treads Light Treads Leg Carbon-fiber Leg Wheel Wheel Hover Unit Gravmag Array Flight Unit Nuclear Pulse Thruster Utility Improved Heat Sink Device Improved Heat Sink Storage Small Storage Unit Protection Propulsion Shielding Weapon Heavy EM Shotgun Energy Gun Heavy EM Shotgun Energy Cannon Phase Cannon Ballistic Gun Assault Rifle Ballistic Cannon Advanced Assault Cannon Launcher Grenade Launcher Build | -11 -10 -10 -10 -9 -8 -7 -6 -6 -6 -5 -5 ------- Run | Yrd Mat Min Exi Min Mat Fac Fac Was Fac Fac Ext Slots Evolved 10 | . . . . . 4 2 2 . . 2 . Power 2 | . . . . . 1 . . . . 1 . Propulsion 2 | . . . . . 1 . 1 . . . . Utility 4 | . . . . . 1 2 1 . . . . Weapon 2 | . . . . . 1 . . . . 1 . Parts Attached 103 | 6 . 2 . 8 36 14 13 1 16 . 7 Power 19 | 1 . . . 1 9 3 1 . 3 . 1 Engine 10 | 1 . . . 1 7 1 . . . . . Core 9 | . . . . . 2 2 1 . 3 . 1 Reactor . | . . . . . . . . . . . . Propulsion 20 | 2 . . . 2 7 1 3 . 2 . 3 Treads 1 | . . . . . . . 1 . . . . Leg 14 | 2 . . . 2 7 1 2 . . . . Wheel 1 | . . . . . . . . . . . 1 Hover 3 | . . . . . . . . . 2 . 1 Flight 1 | . . . . . . . . . . . 1 Utility 36 | 1 . 1 . 1 10 7 5 . 9 . 2 Device 24 | . . . . 1 8 4 4 . 6 . 1 Storage 10 | 1 . . . . 2 3 . . 3 . 1 Processor . | . . . . . . . . . . . . Hackware . | . . . . . . . . . . . . Protection 2 | . . 1 . . . . 1 . . . . Artifact . | . . . . . . . . . . . . Weapon 28 | 2 . 1 . 4 10 3 4 1 2 . 1 Energy Gun 13 | 1 . . . 1 8 . . . 2 . 1 Energy Cannon 2 | . . . . . . 1 1 . . . . Ballistic Gun 8 | 1 . 1 . 1 2 . 2 1 . . . Ballistic Cannon 3 | . . . . . . 2 1 . . . . Launcher 2 | . . . . 2 . . . . . . . Special Weapon . | . . . . . . . . . . . . Impact Weapon . | . . . . . . . . . . . . Slashing Weapon . | . . . . . . . . . . . . Piercing Weapon . | . . . . . . . . . . . . Special Melee Weapon . | . . . . . . . . . . . . Unidentified Prototypes 1 | . . . . . 1 . . . . . . Parts Lost 21 | . . . . 1 1 . 3 6 . 2 8 Power 2 | . . . . . . . . 1 . . 1 Propulsion 7 | . . . . . . . 1 1 . 1 4 Utility 6 | . . . . . . . 1 2 . 1 2 Weapon 6 | . . . . 1 1 . 1 2 . . 1 Highest Loss Streak 8 | . . . . 1 1 . 2 6 . 2 8 To Critical Strikes . | . . . . . . . . . . . . Average Slot Usage (%) 80 | . 85 90 100 99 99 99 99 70 10 30 14 Engine 6 | . 14 14 14 14 12 7 2 . . . . Core 5 | . . . . . 5 7 9 8 4 3 2 Leg 19 | . 28 28 28 28 27 23 22 12 . . . Hover 1 | . . . . . . . . . 1 10 2 Device 16 | . . . . 1 17 29 31 19 2 8 . Storage 7 | . 14 14 14 14 8 7 6 4 . 5 5 Protection 2 | . . 5 14 12 . . 1 6 . . . Energy Gun 6 | . 14 . . 1 17 11 4 . . . . Energy Cannon 1 | . . . . . . 3 6 3 . . . Ballistic Gun 7 | . 14 27 28 24 9 3 1 3 . . . Ballistic Cannon 2 | . . . . . . 3 6 4 . . . Peak Build Rating 53 | 6 6 7 7 7 36 45 53 53 34 36 31 Average Rating 29 | 1 6 6 7 6 29 44 50 36 9 32 15 On Entrance 18 | . 6 6 7 7 7 35 45 53 6 34 15 Naked Turns 71 | . . . . . . . . . 71 . . Heaviest Build 49 | 12 12 12 12 12 36 49 49 47 13 13 19 Greatest Support 62 | 20 20 20 20 20 47 47 62 48 40 40 20 Greatest Overweight (x) 6 | 1 . . . . 1 1 2 1 3 . 6 Average Overweight (x) . | . . . . . . . . . 1 . . Largest Inventory Capacity 10 | 8 8 8 8 8 10 10 10 10 8 8 8 Average Capacity 8 | 6 8 8 8 8 8 10 10 8 5 8 6 Most Carried 10 | 7 7 8 8 8 10 10 10 10 5 8 8 Average Carried 7 | 2 6 7 8 7 7 9 9 8 4 7 4 Final Capacity 10 | 8 8 8 8 8 10 10 10 5 8 8 5 Final Carried 10 | 4 7 8 8 7 10 10 10 5 4 8 . Class Distribution -------------------- 40% | Mutant 33% | Skirmisher 20% | Scavenger-Gunner Dominant Class ---------------- Mutant | -10/Materials Mutant | -10/Mines Mutant | -10/Exiles Mutant | -9/Mines Scavenger-Gunner | -8/Materials Skirmisher | -7/Factory Skirmisher | -6/Factory Skirmisher | -6/Waste Mutant | -6/Factory Mutant | -5/Factory Mutant | -5/Extension Resources | -11 -10 -10 -10 -9 -8 -7 -6 -6 -6 -5 -5 ----------- Run | Yrd Mat Min Exi Min Mat Fac Fac Was Fac Fac Ext Matter Collected 1388 | 222 38 77 . 101 507 189 189 . . . 65 Remotely . | . . . . . . . . . . . . Salvage Created 1418 | . . 94 . 127 724 145 328 . . . . Parts 86 | . . 10 . 8 46 10 12 . . . . Haulers Intercepted . | . . . . . . . . . . . . Recyclers Shooed . | . . . . . . . . . . . . Parts Field Recycled . | . . . . . . . . . . . . Retrieved Matter . | . . . . . . . . . . . . Parts Self-Destructed . | . . . . . . . . . . . . Prevented . | . . . . . . . . . . . . Kills | -11 -10 -10 -10 -9 -8 -7 -6 -6 -6 -5 -5 ------- Run | Yrd Mat Min Exi Min Mat Fac Fac Was Fac Fac Ext Combat Hostiles Destroyed 31 | . . 6 . 5 14 2 4 . . . . Guns 21 | . . 6 . 4 10 . 1 . . . . Cannons 5 | . . . . . . 2 3 . . . . AOE 5 | . . . . 1 4 . . . . . . Classes Destroyed 11 | . . 1 . 3 4 1 2 . . . . Worker 1 | . . . . . 1 . . . . . . Tunneler 1 | . . . . 1 . . . . . . . Recycler 1 | . . . . . . . 1 . . . . Watcher 5 | . . . . . 3 1 1 . . . . Swarmer 10 | . . 6 . . 4 . . . . . . Grunt 10 | . . . . 4 6 . . . . . . Duelist 1 | . . . . . . . 1 . . . . Sentry 5 | . . . . . 3 1 1 . . . . Hunter 1 | . . . . . 1 . . . . . . Programmer 3 | . . . . . . 1 2 . . . . Assembled 1 | . . . . 1 . . . . . . . Best Kill Streak 4 | . . 3 . 3 4 1 2 . . . . Combat Bots Only 4 | . . 3 . 3 4 1 1 . . . . Max Kills in Single Turn 4 | . . 2 . 1 4 1 1 . . . . Gunslinging 1 | . . . . . 1 . . . . . . Exploded 3 | . . . . 1 3 . . . . . . Melee . | . . . . . . . . . . . . Uniques/NPCs Destroyed . | . . . . . . . . . . . . Combat | -11 -10 -10 -10 -9 -8 -7 -6 -6 -6 -5 -5 -------- Run | Yrd Mat Min Exi Min Mat Fac Fac Was Fac Fac Ext Hostile Shots Fired 453 | . . 22 . 24 87 56 46 7 31 58 122 Missed 178 | . . 6 . 3 34 22 22 2 17 24 48 Damage Taken 4617 | . . 117 . 342 825 319 554 244 154 701 1361 Core 1479 | . . 28 . 75 110 38 96 36 86 259 751 Absorbed by Shields . | . . . . . . . . . . . . Redirected to Shielding 42 | . . . . 34 . . . 8 . . . Ignored by Resistances 108 | . . . . . . . . . . . 108 Regen/Repaired (Parts) 43 | . . . . . 43 . . . . . . Core Remaining (%) 81 | 100 . . . 58 80 94 . . 74 . . Volleys Fired 105 | . 5 11 . 20 36 10 14 2 7 . . Largest 3 | . 2 2 . 2 3 3 3 1 1 . . Hottest 183 | . 70 70 . 50 128 163 183 53 69 . . Shots Fired 230 | . 10 22 . 38 88 27 36 2 7 . . Gun 184 | . 10 22 . 32 88 17 8 . 7 . . Cannon 40 | . . . . . . 10 28 2 . . . Launcher 6 | . . . . 6 . . . . . . . Special . | . . . . . . . . . . . . Kinetic 122 | . 5 20 . 32 36 10 17 2 . . . Thermal 36 | . 5 2 . . 3 5 14 . 7 . . Explosive 6 | . . . . 6 . . . . . . . Electromagnetic 66 | . . . . . 49 12 5 . . . . Robot Hit Streak 12 | . 2 5 . 7 12 12 9 2 1 . . Robot Miss Streak 9 | . 8 9 . 2 4 5 3 4 7 . . Penetration Max . | . . . . . . . . . . . . Secondary Targets 4 | . . 1 . . 3 . . . . . . Max Gunslinging Chain 1 | . . 1 . . 1 . . . . . . Shots Hit Robots 128 | . 2 12 . 20 55 16 20 2 1 . . Core Hits 79 | . . 8 . 11 35 8 15 2 . . . Critical Kills . | . . . . . . . . . . . . Critical Parts Destroyed 2 | . . 1 . 1 . . . . . . . Critical Strikes 3 | . . 1 . 1 . . 1 . . . . Destroy 2 | . . 1 . 1 . . . . . . . Blast 1 | . . . . . . . 1 . . . . Melee Attacks . | . . . . . . . . . . . . Impact . | . . . . . . . . . . . . Slashing . | . . . . . . . . . . . . Piercing . | . . . . . . . . . . . . Sneak Attacks . | . . . . . . . . . . . . Combat Hostiles . | . . . . . . . . . . . . Follow-up Attacks . | . . . . . . . . . . . . Damage Inflicted 2958 | . 23 146 . 417 1292 387 605 68 20 . . Guns 1711 | . 23 146 . 223 934 225 140 . 20 . . Cannons 578 | . . . . . . 116 394 68 . . . Explosions 669 | . . . . 194 358 46 71 . . . . Melee . | . . . . . . . . . . . . Ramming . | . . . . . . . . . . . . Kinetic 1023 | . 10 133 . 223 300 66 223 68 . . . Thermal 765 | . 13 13 . . 358 131 230 . 20 . . Explosive 224 | . . . . 194 . . 30 . . . . Electromagnetic 946 | . . . . . 634 190 122 . . . . Impact . | . . . . . . . . . . . . Slashing . | . . . . . . . . . . . . Piercing . | . . . . . . . . . . . . Highest Corruption 13 | . . . . . . . 1 13 13 . . Average Corruption 8 | . . . . . . . 1 9 13 . . Corruption Purged . | . . . . . . . . . . . . Corruption Blocked . | . . . . . . . . . . . . Effects 29 | . . . . . . . 2 8 19 . . Message Errors 7 | . . . . . . . 1 2 4 . . Matter Fused 5 | . . . . . . . . 3 2 . . Heat Flow Errors 3 | . . . . . . . . 1 2 . . Energy Discharges 2 | . . . . . . . . . 2 . . Parts Rejected 2 | . . . . . . . . . 2 . . Parts Fused 1 | . . . . . . . . 1 . . . Data Loss (minor) 1 | . . . . . . . . . 1 . . Data Loss (major) 4 | . . . . . . . . . 4 . . Alerts 2 | . . . . . . . 1 . 1 . . Misdirections 2 | . . . . . . . . 1 1 . . Overload Shots . | . . . . . . . . . . . . Overflow Damage 8 | . . . . . . . 8 . . . . Projectiles . | . . . . . . . . . . . . Explosions 8 | . . . . . . . 8 . . . . Melee . | . . . . . . . . . . . . Knockbacks 2 | . . . . . . . 2 . . . . Impact . | . . . . . . . . . . . . Kinetic 2 | . . . . . . . 2 . . . . Secondary . | . . . . . . . . . . . . Self-Inflicted Damage 235 | . . . . 85 . . 150 . . . . Shots 6 | . . . . 4 . . 2 . . . . Rammed . | . . . . . . . . . . . . Targets Rammed . | . . . . . . . . . . . . Kicked . | . . . . . . . . . . . . Crushed . | . . . . . . . . . . . . Highest Temperature 180 | . 18 18 . 16 6 36 30 174 180 . . Average Temperature 22 | . 7 10 . 5 3 14 14 75 94 . . Received Heat Transfer 1020 | . . . . 90 450 84 48 . 36 162 150 Siege Activations . | . . . . . . . . . . . . Robots Corrupted 1 | . . . . . . . 1 . . . . Combat Hostiles . | . . . . . . . . . . . . Parts Fried 3 | . . . . . 1 . 2 . . . . Impact Corruptions . | . . . . . . . . . . . . Robots Melted . | . . . . . . . . . . . . Combat Hostiles . | . . . . . . . . . . . . Parts Melted . | . . . . . . . . . . . . Heat Transferred 781 | . 37 37 . . 250 161 259 . 37 . . Parts Sabotaged . | . . . . . . . . . . . . Parts Stolen . | . . . . . . . . . . . . Parts Stripped . | . . . . . . . . . . . . Power Chain Reactions 4 | . . . . . 3 1 . . . . . Alert | -11 -10 -10 -10 -9 -8 -7 -6 -6 -6 -5 -5 ------- Run | Yrd Mat Min Exi Min Mat Fac Fac Was Fac Fac Ext Peak Influence 408 | . 75 168 . 130 408 220 107 15 55 195 204 Initial 116 | . . 28 . . . 116 24 . 10 . 14 Average 90 | . 28 145 . 36 211 134 37 3 20 89 102 Maximum Alert Level 2 | . . . . . 2 1 . . . . 1 Low Security (%) 84 | 100 100 100 . 100 39 78 100 100 100 100 91 Level 1 13 | . . . . . 52 21 . . . . 8 Level 2 1 | . . . . . 7 . . . . . . Level 3 . | . . . . . . . . . . . . Level 4 . | . . . . . . . . . . . . Level 5 . | . . . . . . . . . . . . High Security . | . . . . . . . . . . . . Max Security . | . . . . . . . . . . . . Squads Dispatched 8 | . 1 . . 1 1 1 2 . . 2 . Investigation 1 | . . . . . 1 . . . . . . Extermination 3 | . . . . . . 1 2 . . . . Reinforcement 3 | . 1 . . . . . . . . 2 . Assault 1 | . . . . 1 . . . . . . . Garrison . | . . . . . . . . . . . . Intercept . | . . . . . . . . . . . . Searches Triggered . | . . . . . . . . . . . . Construction Impeded . | . . . . . . . . . . . . Haulers Reinforced . | . . . . . . . . . . . . Active Scanning Responses . | . . . . . . . . . . . . Cargo Convoy Interrupts . | . . . . . . . . . . . . Stealth | -11 -10 -10 -10 -9 -8 -7 -6 -6 -6 -5 -5 --------- Run | Yrd Mat Min Exi Min Mat Fac Fac Was Fac Fac Ext Distress Signals 4 | . 1 . . . 2 . . . . 1 . Communications Jammed . | . . . . . . . . . . . . Distress Signals . | . . . . . . . . . . . . Times Spotted 90 | . 4 4 . 5 23 4 8 6 3 13 20 Peak Tracking Total 8 | . 4 3 . 2 6 2 4 6 2 8 8 Tactical Retreats 15 | . 1 . . 1 2 . . 1 . 4 6 Traps | -11 -10 -10 -10 -9 -8 -7 -6 -6 -6 -5 -5 ------- Run | Yrd Mat Min Exi Min Mat Fac Fac Was Fac Fac Ext Traps Triggered 4 | . . . . . 1 . 2 . . 1 . Indirectly . | . . . . . . . . . . . . Trap Hack Attempts . | . . . . . . . . . . . . Triggered . | . . . . . . . . . . . . Disarmed . | . . . . . . . . . . . . Reprogrammed . | . . . . . . . . . . . . Reused . | . . . . . . . . . . . . Traps Extracted . | . . . . . . . . . . . . Installed . | . . . . . . . . . . . . Triggered . | . . . . . . . . . . . . Machines | -11 -10 -10 -10 -9 -8 -7 -6 -6 -6 -5 -5 ---------- Run | Yrd Mat Min Exi Min Mat Fac Fac Was Fac Fac Ext Machines Disabled 8 | . . . . 1 2 1 4 . . . . Max in Single Turn 2 | . . . . 1 1 1 2 . . . . Machines Repaired . | . . . . . . . . . . . . Machines Dismantled . | . . . . . . . . . . . . Machines Sabotaged . | . . . . . . . . . . . . Overloaded Fab Kills . | . . . . . . . . . . . . Hacking | -11 -10 -10 -10 -9 -8 -7 -6 -6 -6 -5 -5 --------- Run | Yrd Mat Min Exi Min Mat Fac Fac Was Fac Fac Ext Machines Accessed 10 | . 1 . . . 6 1 2 . . . . Terminals 5 | . . . . . 3 1 1 . . . . Fabricators . | . . . . . . . . . . . . Repair Stations 2 | . . . . . 1 . 1 . . . . Recycling Units 1 | . 1 . . . . . . . . . . Scanalyzers 2 | . . . . . 2 . . . . . . Garrison Access . | . . . . . . . . . . . . Total Hacks 23 | . 3 . . . 15 1 4 . . . . Successful 17 | . 2 . . . 13 1 1 . . . . Failed 6 | . 1 . . . 2 . 3 . . . . Catastrophic . | . . . . . . . . . . . . Database Lockouts . | . . . . . . . . . . . . Manual . | . . . . . . . . . . . . Terminals 9 | . . . . . 7 1 1 . . . . Fabricators . | . . . . . . . . . . . . Repair Stations 5 | . . . . . 2 . 3 . . . . Recycling Units 3 | . 3 . . . . . . . . . . Scanalyzers 6 | . . . . . 6 . . . . . . Garrison Access . | . . . . . . . . . . . . Terminal Hacks 8 | . . . . . 7 1 . . . . . Record 8 | . . . . . 7 1 . . . . . Fabricator Hacks . | . . . . . . . . . . . . Repair Station Hacks 3 | . . . . . 2 . 1 . . . . Scan Component 2 | . . . . . 1 . 1 . . . . Repair 1 | . . . . . 1 . . . . . . Recycling Unit Hacks 2 | . 2 . . . . . . . . . . Report Inventory 2 | . 2 . . . . . . . . . . Scanalyzer 4 | . . . . . 4 . . . . . . Insert Component 2 | . . . . . 2 . . . . . . Analyze 2 | . . . . . 2 . . . . . . Garrison Access Hacks . | . . . . . . . . . . . . Unauthorized Hacks . | . . . . . . . . . . . . Terminals . | . . . . . . . . . . . . Fabricators . | . . . . . . . . . . . . Repair Stations . | . . . . . . . . . . . . Recycling Units . | . . . . . . . . . . . . Scanalyzers . | . . . . . . . . . . . . Garrison Access . | . . . . . . . . . . . . Data Cores Recovered . | . . . . . . . . . . . . Used . | . . . . . . . . . . . . Hacking Detections 5 | . . . . . 4 . 1 . . . . Full Trace Events . | . . . . . . . . . . . . Feedback Events . | . . . . . . . . . . . . Feedback Blocked . | . . . . . . . . . . . . Robot Schematics Acquired . | . . . . . . . . . . . . Robots Built . | . . . . . . . . . . . . Authchips . | . . . . . . . . . . . . Time . | . . . . . . . . . . . . Total Robot Build Rating . | . . . . . . . . . . . . Part Schematics Acquired 2 | . . . . . 2 . . . . . . Parts Built . | . . . . . . . . . . . . Authchips . | . . . . . . . . . . . . Time . | . . . . . . . . . . . . Total Part Build Rating . | . . . . . . . . . . . . Parts Repaired 1 | . . . . . 1 . . . . . . Time 26 | . . . . . 26 . . . . . . Parts Recycled . | . . . . . . . . . . . . Recycled Matter . | . . . . . . . . . . . . Retrieved Matter . | . . . . . . . . . . . . Retrieved Components . | . . . . . . . . . . . . Parts Scanalyzed 2 | . . . . . 2 . . . . . . Part Schematics Acquired 2 | . . . . . 2 . . . . . . Parts Damaged . | . . . . . . . . . . . . Bothacking | -11 -10 -10 -10 -9 -8 -7 -6 -6 -6 -5 -5 ------------ Run | Yrd Mat Min Exi Min Mat Fac Fac Was Fac Fac Ext Used RIF Installer . | . . . . . . . . . . . . Robots Hacked . | . . . . . . . . . . . . Non-combat . | . . . . . . . . . . . . Combat . | . . . . . . . . . . . . Robot Hacks Applied . | . . . . . . . . . . . . Relay Couplers Released . | . . . . . . . . . . . . Fabnet Peak Effective % . | . . . . . . . . . . . . Robots Rewired . | . . . . . . . . . . . . Allies Hacked . | . . . . . . . . . . . . Hacks Repelled . | . . . . . . . . . . . . Allies | -11 -10 -10 -10 -9 -8 -7 -6 -6 -6 -5 -5 -------- Run | Yrd Mat Min Exi Min Mat Fac Fac Was Fac Fac Ext Total Allies 2 | . . 1 . 1 . . . . . . . Largest Group 1 | . . 1 1 1 1 . . . . . . Highest-Rated Group 31 | . . 31 31 31 31 . . . . . . Highest-Rated Ally 31 | . . 31 31 31 31 . . . . . . Total Orders . | . . . . . . . . . . . . Ally Attacks 23 | . . . . . 23 . . . . . . Total Damage 280 | . . . . . 280 . . . . . . Kills 4 | . . . . . 4 . . . . . . Allies Corrupted 1 | . . . . 1 . . . . . . . Allies Melted . | . . . . . . . . . . . . Intel | -11 -10 -10 -10 -9 -8 -7 -6 -6 -6 -5 -5 ------- Run | Yrd Mat Min Exi Min Mat Fac Fac Was Fac Fac Ext Robot Analysis Total . | . . . . . . . . . . . . Derelict Logs Recovered . | . . . . . . . . . . . . Drone Launches . | . . . . . . . . . . . . Drone Recoveries . | . . . . . . . . . . . . Exploration | -11 -10 -10 -10 -9 -8 -7 -6 -6 -6 -5 -5 ------------- Run | Yrd Mat Min Exi Min Mat Fac Fac Was Fac Fac Ext Turns Passed 5202 | 118 218 241 38 454 1106 493 1291 197 497 427 122 Spaces Moved 3594 | 114 167 159 32 210 700 285 638 225 375 541 148 Core 529 | 87 . . . . . . . 124 289 . 29 Treads 130 | . . . . . . . 130 . . . . Legs 2189 | 27 167 159 32 210 700 285 508 101 . . . Wheels . | . . . . . . . . . . . . Hover 746 | . . . . . . . . . 86 541 119 Flight . | . . . . . . . . . . . . Fastest Speed 50 | 50 120 120 120 120 120 123 122 50 50 56 60 Average Speed 116 | 70 120 120 120 120 130 149 163 83 110 56 76 Slowest Speed 350 | 120 120 120 120 120 190 193 320 195 200 60 350 Overloaded Moves . | . . . . . . . . . . . . Propulsion Burnouts . | . . . . . . . . . . . . Robots Hopped . | . . . . . . . . . . . . Cave-ins Triggered . | . . . . . . . . . . . . Exploration Rate (%) 24 | 5 30 27 8 20 50 5 12 82 8 13 29 Regions Visited 11 Branch Regions 4 Pre-discovered Areas . | . . . . . . . . . . . . Known Exits Taken . | . . . . . . . . . . . . Unknown Exits Taken 9 | 1 1 1 1 1 1 1 . . 1 1 . Scrap Searched 2 | . . 2 . . . . . . . . . Spaces Dug . | . . . . . . . . . . . . Terrain Destroyed 73 | . . . . 28 13 2 30 . . . . Melee . | . . . . . . . . . . . . Projectile 7 | . . . . . . 2 5 . . . . AOE 66 | . . . . 28 13 . 25 . . . . Terrain Rammed . | . . . . . . . . . . . . Walls Destroyed . | . . . . . . . . . . . . Machines Disabled . | . . . . . . . . . . . . Actions | -11 -10 -10 -10 -9 -8 -7 -6 -6 -6 -5 -5 --------- Run | Yrd Mat Min Exi Min Mat Fac Fac Was Fac Fac Ext Total 4444 | 151 174 191 31 376 827 336 856 231 453 661 157 Wait 519 | 23 . 11 . 134 7 9 181 4 33 117 . Move 3584 | 113 166 158 31 209 699 284 638 224 374 540 148 Hop . | . . . . . . . . . . . . Pick Up 69 | 9 3 5 . 1 23 9 4 . 9 4 2 Fast Attach 9 | 1 . 1 . 1 1 . 2 . 3 . . Attach 39 | 5 . . . 1 5 3 4 1 13 . 7 Detach 7 | . . . . . . . 1 . 6 . . Swap 55 | . . 1 . 6 30 11 7 . . . . Drop 57 | . . 4 . 4 26 10 5 . 8 . . Fire 105 | . 5 11 . 20 36 10 14 2 7 . . Melee . | . . . . . . . . . . . . Ram . | . . . . . . . . . . . . Kick . | . . . . . . . . . . . . Crush . | . . . . . . . . . . . . Escape Stasis . | . . . . . . . . . . . . Rewire . | . . . . . . . . . . . . Trap . | . . . . . . . . . . . . Miscellaneous . | . . . . . . . . . . . . Route ------- -11/Scrapyard -10/Materials -10/Mines (discovered 2 exits: [*Mat] / [*Exi]) -10/Exiles -9/Mines -8/Materials (discovered 2 exits: *Fac x2) -7/Factory -6/Factory -6/Waste -6/Factory -5/Factory -5/Extension History --------- Turn | Location | Event 4 | -11/Scrapyard | Discovered new exit (range 14) 119 | -11/Scrapyard | Entered Materials 236 | -10/Materials | Discovered new exit (range 12) 310 | -10/Materials | Build established: Mutant 337 | -10/Materials | Entered Mines 346 | -10/Mines | Assembled infested the area 439 | -10/Mines | Discovered new exit (range 9) 557 | -10/Mines | Received a Mining Laser from a helpful Derelict 573 | -10/Mines | Discovered new exit (range 5) 578 | -10/Mines | Entered Exiles 578 | -10/Exiles | Accompanied by 1 ally 598 | -10/Exiles | Discovered new exit (range 15) 616 | -10/Exiles | Entered Mines 616 | -9/Mines | Accompanied by 1 ally 671 | -9/Mines | Excavation squad dispatched 671 | -9/Mines | A large section of the Mines collapsed 921 | -9/Mines | Excavation squad dispatched 1055 | -9/Mines | Discovered new exit (range 5) 1061 | -9/Mines | Met a Derelict testing a Signal Generator 1070 | -9/Mines | Entered Materials 1070 | -8/Materials | Accompanied by 1 ally 1070 | -8/Materials | Evolved 4 slots: Power x1, Propulsion x1, Utility x1, Weapon x1 1301 | -8/Materials | Discovered new exit (range 10) 1386 | -8/Materials | Build established: Scavenger-Gunner 1942 | -8/Materials | Repaired Sml. Storage Unit? 2148 | -8/Materials | Discovered new exit (range 13) 2176 | -8/Materials | Entered Factory 2176 | -7/Factory | Evolved 2 slots: Utility x2 2476 | -7/Factory | Build established: Skirmisher 2646 | -7/Factory | Discovered new exit (range 3) 2669 | -7/Factory | Entered another Factory area 2669 | -6/Factory | Evolved 2 slots: Propulsion x1, Utility x1 3960 | -6/Factory | Sucked down chute 3960 | -6/Factory | Entered Waste 3968 | -6/Waste | Spotted C-40 Crusher 3969 | -6/Waste | Spotted C-40 Crusher 3975 | -6/Waste | EMP discharged 4066 | -6/Waste | Spotted C-40 Crusher 4075 | -6/Waste | EMP discharged 4075 | -6/Waste | System corruption reached 10% 4083 | -6/Waste | Crushed by Compactor (1 part destroyed, 2 dropped) 4088 | -6/Waste | Crushed by Compactor (1 part destroyed, 1 dropped) 4091 | -6/Waste | Crushed by Compactor (1 part destroyed, 1 dropped) 4093 | -6/Waste | Crushed by Compactor (1 part destroyed, 2 dropped) 4094 | -6/Waste | Crushed by Compactor (1 part destroyed, 2 dropped) 4113 | -6/Waste | Spotted C-40 Crusher 4113 | -6/Waste | Spotted C-40 Crusher 4125 | -6/Waste | Lost 6 parts (1p1n2u2w) 4143 | -6/Waste | Spotted C-40 Crusher 4150 | -6/Waste | Discovered new exit (range 14) 4157 | -6/Waste | Entered Factory 4191 | -6/Factory | Spotted B-75 Beast 4378 | -6/Factory | Build established: Mutant 4643 | -6/Factory | Discovered new exit (range 6) 4654 | -6/Factory | Entered another Factory area 4654 | -5/Factory | Evolved 2 slots: Power x1, Weapon x1 5072 | -5/Factory | Discovered new exit (range 16) 5081 | -5/Factory | Entered Extension 5147 | -5/Extension | Spotted B-75 Beast 5154 | -5/Extension | Core integrity fell below 50% 5170 | -5/Extension | Spotted B-75 Beast 5180 | -5/Extension | Core integrity fell below 20% 5203 | -5/Extension | Destroyed by Y-64 Sentinel with Wave Gun Last Messages --------------- 05160_ Sml. Storage Unit destroyed. Flying robots can pass through spaces occupied by others, even hostile robots. 05162_ Acquired 24 matter. 05163_ Acquired Hpw. Shock Rifle. 05164_ Acquired 1 matter. 05166_ K-01 Serf destroyed. 05172_ Knocked back. 05172_ Gravmag Array destroyed. 05173_ Nuclear Pulse Thruster destroyed. 05174_ Acquired 2 matter. 05176_ Hpw. Shock Rifle destroyed. 05176_ Machine disabled. 05178_ Penetrated by Slug. 05178_ U-05 Engineer destroyed. 05181_ Slug penetrates Wall. 05184_ Acquired Wheel. 05185_ Acquired 33 matter. 05187_ Wheel destroyed. 05187_ Imp. Focal Shield destroyed. Map ----- +----------------------------------------------------+ | | | | | | | | | | | | | | | | | | | | | | | | | | | | | ?????????????????????????????????????????????????? | | ?????????????????????????####????????????????????? | | ????????????????????????? #???????????????????? | | ????????????????????????? #???????????????????? | | ????????????????????????? #???????????????????? | | ?????????????????????????# #???????????????????? | | ??????????????????#####??# #???????????????????? | | ??????????????????# ?+ #???????????????????? | | ??????????????????# * ?# #???????????????????? | | ??????????????????# lg # #???????????????????? | | ??????????????????#= bg # #####???????????????? | | ??????????????????# Y @ #???????????????? | | ??????????????????# Y # #???????????????? | | ??????????????????######## #???????????????? | | ?????????????????????????# #???????????????? | | ?????????????????????????# #???????????????? | | ?????????????????????????# #???????????????? | | ?????????????????????????# #???????????????? | | ?????????????????????????# #???????????????? | | ?????????????????????????# #???????????????? | | ?????????????????????????# #???????????????? | | ?????????????????????????# #???????????????? | | ?????????????????????????# #???????????????? | | ?????????????????????????# #???????????????? | | ?????????????????????????# #???????????????? | | ?????????????????????????#######!#???????????????? | | ???????????????????????????????#%#???????????????? | | ???????????????????????????????# #???????????????? | | ???????????????????????????????# #???????????????? | | ???????????????????????????????# #???????????????? | | ???????????????????????????????# #???#??#????????? | | ?????????????????????????????##"%### ## ###??????? | | ?????????????????????????????#" " "" "????? | | ?????????????????????????????# " " " ???? | | ?????????????????????????????# % #??? | | ???????????????????#?????????# #??? | +----------------------------------------------------+ Best States ------------- Heat Dissipation 79 Energy Generation 26 Energy Capacity 450 Matter Stores 300 Matter Capacity 300 Sight Range 16 Robot Scan Range 15 Terrain Scan Density 10 Resistance: KI 25 Core Shielding 20 Propulsion Shielding 33 Evasion (%) 63 Recoil Reduction 1 Item Schematics ----------------- Carbon-fiber Leg | -8/Materials | Scanalyzed Imp. Heat Sink | -8/Materials | Scanalyzed Robot Schematics ------------------ None Fabricated ------------ Nothing Alien Tech Used ----------------- None Achievements -------------- None Challenges ------------ None Game ------ Seed ImprinterLaserThruster Manual? 0 Play Time 01:19:15 Cumulative 3.6 hours Start 2024.08.08 @ 13:19:42 End 2024.08.11 @ 14:03:06 Sessions 3 Manual Loads 0 Difficulty Rogue Special Mode None Game No. 5 Rogue 5 Adventurer 0 Explorer 0 Win Type - Total 0 Types 0/0/0/0/0/0/0/0/0 Lore% 5 Gallery% 8 Achievement% 10 Wizard Run 0 Options --------- Layout 1 ASCII 0 Keyboard 0 Movement Mouse Keybinds 0 Fullscreen 0 Font 18/Terminus Map View 50x50 Zoom Use 68% Tactical HUD 1 Map Filters NONE Filters NONE Steam 1 RUN: 14a40589-dfc5-4b59-8faf-29b5cb33e342